[Event "Titled Tuesday Blitz August 02 Late 2022"]
[White "Vagman, Roy"]
[Black "Babazada, Khazar"]
[WhiteFideId "2828995"]
[BlackFideId "13413554"]
[WhiteElo "1956"]
[BlackElo "2409"]
[Result "0-1"]
[Round "02"]
[TimeControl "180+1"]
[Date "2022.08.02"]
[WhiteClock "0:00:02"]
[BlackClock "0:00:08"]

1. d4 {[%clk 0:03:00]}  Nf6 {[%clk 0:02:50]} 2. Nf3 {[%clk 0:03:00]}  g6 {[%clk 0:02:50]} 3. c4 {[%clk 0:02:59]}  Bg7 {[%clk 0:02:50]} 4. g3 {[%clk 0:02:57]}  O-O {[%clk 0:02:51]} 5. Bg2 {[%clk 0:02:57]}  d6 {[%clk 0:02:51]} 6. O-O {[%clk 0:02:57]}  Bg4 {[%clk 0:02:49]} 7. Nc3 {[%clk 0:02:55]}  c6 {[%clk 0:02:49]} 8. h3 {[%clk 0:02:49]}  Bxf3 {[%clk 0:02:48]} 9. exf3 {[%clk 0:02:41]}  Qc7 {[%clk 0:02:49]} 10. f4 {[%clk 0:02:42]}  Na6 {[%clk 0:02:44]} 11. Be3 {[%clk 0:02:40]}  e6 {[%clk 0:02:33]} 12. Qd2 {[%clk 0:02:22]}  d5 {[%clk 0:02:31]} 13. cxd5 {[%clk 0:02:08]}  exd5 {[%clk 0:02:20]} 14. Rac1 {[%clk 0:02:08]}  Qe7 {[%clk 0:02:16]} 15. Rfe1 {[%clk 0:02:05]}  Rfe8 {[%clk 0:02:15]} 16. Kh2 {[%clk 0:01:58]}  h5 {[%clk 0:02:15]} 17. a3 {[%clk 0:01:46]}  Qd7 {[%clk 0:02:12]} 18. b4 {[%clk 0:01:44]}  Nc7 {[%clk 0:02:12]} 19. Na4 {[%clk 0:01:43]}  Nb5 {[%clk 0:02:05]} 20. Nc5 {[%clk 0:01:42]}  Qc8 {[%clk 0:02:05]} 21. a4 {[%clk 0:01:35]}  Nd6 {[%clk 0:01:58]} 22. Bf1 {[%clk 0:01:29]}  Re7 {[%clk 0:01:48]} 23. b5 {[%clk 0:01:23]}  cxb5 {[%clk 0:01:44]} 24. axb5 {[%clk 0:01:18]}  Qe8 {[%clk 0:01:43]} 25. Qb4 {[%clk 0:01:14]}  Nf5 {[%clk 0:01:36]} 26. Bd2 {[%clk 0:01:14]}  Nh7 {[%clk 0:01:16]} 27. Bc3 {[%clk 0:01:08]}  b6 {[%clk 0:01:05]} 28. Nd3 {[%clk 0:01:02]}  Nf6 {[%clk 0:00:37]} 29. Ne5 {[%clk 0:00:55]}  Ne4 {[%clk 0:00:35]} 30. Kg2 {[%clk 0:00:43]}  Rc8 {[%clk 0:00:32]} 31. Nc6 {[%clk 0:00:39]}  Re6 {[%clk 0:00:32]} 32. Bb2 {[%clk 0:00:35]}  Bf8 {[%clk 0:00:25]} 33. Qb3 {[%clk 0:00:33]}  Rc7 {[%clk 0:00:16]} 34. Qd3 {[%clk 0:00:32]}  a6 {[%clk 0:00:13]} 35. Qb3 {[%clk 0:00:26]}  axb5 {[%clk 0:00:11]} 36. Bxb5 {[%clk 0:00:25]}  Qc8 {[%clk 0:00:10]} 37. Qxd5 {[%clk 0:00:20]}  Ned6 {[%clk 0:00:10]} 38. Ne5 {[%clk 0:00:14]}  Nxb5 {[%clk 0:00:08]} 39. Qxb5 {[%clk 0:00:14]}  Rxc1 {[%clk 0:00:08]} 40. Rxc1 {[%clk 0:00:14]}  Qb7+ {[%clk 0:00:09]} 41. d5 {[%clk 0:00:13]}  Rd6 {[%clk 0:00:08]} 42. Nc6 {[%clk 0:00:14]}  Qd7 {[%clk 0:00:08]} 43. Rd1 {[%clk 0:00:12]}  Qe8 {[%clk 0:00:06]} 44. Be5 {[%clk 0:00:08]}  Rd7 {[%clk 0:00:05]} 45. Qxb6 {[%clk 0:00:09]}  f6 {[%clk 0:00:05]} 46. Bxf6 {[%clk 0:00:06]}  Qe4+ {[%clk 0:00:06]} 47. Kh2 {[%clk 0:00:07]}  Qf3 {[%clk 0:00:07]} 48. Rg1 {[%clk 0:00:07]}  Qxd5 {[%clk 0:00:05]} 49. Ne5 {[%clk 0:00:07]}  Rd6 {[%clk 0:00:05]} 50. Qb8 {[%clk 0:00:03]}  Rxf6 {[%clk 0:00:05]} 51. Rc1 {[%clk 0:00:03]}  Qd4 {[%clk 0:00:05]} 52. Rc2 {[%clk 0:00:02]}  Qe4 {[%clk 0:00:04]} 53. Rd2 {[%clk 0:00:02]}  Nd4 {[%clk 0:00:04]} 54. Qc8 {[%clk 0:00:02]}  Nf3+ {[%clk 0:00:04]} 55. Nxf3 {[%clk 0:00:03]}  Qxf3 {[%clk 0:00:05]} 56. Qc4+ {[%clk 0:00:03]}  Rf7 {[%clk 0:00:06]} 57. Qd4 {[%clk 0:00:03]}  h4 {[%clk 0:00:06]} 58. Qc4 {[%clk 0:00:03]}  Bg7 {[%clk 0:00:05]} 59. Rd7 {[%clk 0:00:02]}  Qxf2+ {[%clk 0:00:05]} 60. Kh1 {[%clk 0:00:03]}  Qe1+ {[%clk 0:00:05]} 61. Kg2 {[%clk 0:00:03]}  Qxg3+ {[%clk 0:00:06]} 62. Kh1 {[%clk 0:00:03]}  Qxh3+ {[%clk 0:00:06]} 63. Kg1 {[%clk 0:00:03]}  Qxd7 {[%clk 0:00:07]} 64. f5 {[%clk 0:00:02]}  Qxf5 {[%clk 0:00:08]} 65. Qc8+ {[%clk 0:00:02]}  Qxc8 {[%clk 0:00:08]} 0-1


[Site "https://www.chess.com"]

[Event "Titled Tuesday Blitz August 02 Late 2022"]
[White "Yoo, Christopher Woojin"]
[Black "Romanchuk, Viktor"]
[WhiteFideId "30909694"]
[BlackFideId "14109271"]
[WhiteElo "2105"]
[BlackElo "2242"]
[Result "1-0"]
[Round "02"]
[TimeControl "180+1"]
[Date "2022.08.02"]
[WhiteClock "0:02:31"]
[BlackClock "0:01:33"]

1. e4 {[%clk 0:03:00]}  e6 {[%clk 0:02:59]} 2. d3 {[%clk 0:03:00]}  d5 {[%clk 0:02:59]} 3. Nd2 {[%clk 0:03:00]}  Nf6 {[%clk 0:02:56]} 4. g3 {[%clk 0:03:00]}  c5 {[%clk 0:02:56]} 5. Bg2 {[%clk 0:03:00]}  g6 {[%clk 0:02:56]} 6. Ngf3 {[%clk 0:03:00]}  Bg7 {[%clk 0:02:57]} 7. O-O {[%clk 0:03:01]}  O-O {[%clk 0:02:57]} 8. c3 {[%clk 0:02:59]}  Nc6 {[%clk 0:02:57]} 9. e5 {[%clk 0:02:59]}  Nd7 {[%clk 0:02:46]} 10. d4 {[%clk 0:02:59]}  b5 {[%clk 0:02:43]} 11. Re1 {[%clk 0:02:57]}  b4 {[%clk 0:02:41]} 12. Nf1 {[%clk 0:02:49]}  bxc3 {[%clk 0:02:36]} 13. bxc3 {[%clk 0:02:50]}  cxd4 {[%clk 0:02:30]} 14. cxd4 {[%clk 0:02:51]}  Ba6 {[%clk 0:02:30]} 15. Ne3 {[%clk 0:02:50]}  Nb4 {[%clk 0:02:23]} 16. Qa4 {[%clk 0:02:37]}  Rb8 {[%clk 0:02:12]} 17. Ba3 {[%clk 0:02:35]}  Qe7 {[%clk 0:01:36]} 18. Qxa6 {[%clk 0:02:33]}  Nxa6 {[%clk 0:01:32]} 19. Bxe7 {[%clk 0:02:32]}  Rfe8 {[%clk 0:01:33]} 20. Bd6 {[%clk 0:02:31]} 1-0


[Site "https://www.chess.com"]

[Event "Titled Tuesday Blitz August 02 Late 2022"]
[White "Zhigalko, Sergei"]
[Black "Vovk, Orest"]
[WhiteFideId "13502956"]
[BlackFideId "14113490"]
[WhiteElo "2662"]
[BlackElo "2203"]
[Result "1-0"]
[Round "02"]
[TimeControl "180+1"]
[Date "2022.08.02"]
[WhiteClock "0:00:09"]
[BlackClock "0:00:03"]

1. e4 {[%clk 0:03:00]}  g5 {[%clk 0:02:55]} 2. d4 {[%clk 0:02:59]}  h6 {[%clk 0:02:54]} 3. Nc3 {[%clk 0:02:53]}  Bg7 {[%clk 0:02:52]} 4. h4 {[%clk 0:02:46]}  c5 {[%clk 0:02:49]} 5. dxc5 {[%clk 0:02:44]}  Bxc3+ {[%clk 0:02:47]} 6. bxc3 {[%clk 0:02:44]}  g4 {[%clk 0:02:27]} 7. Qxg4 {[%clk 0:02:36]}  Nf6 {[%clk 0:02:27]} 8. Qf3 {[%clk 0:02:16]}  Nc6 {[%clk 0:02:21]} 9. Bd3 {[%clk 0:02:04]}  Qa5 {[%clk 0:02:18]} 10. Ne2 {[%clk 0:01:59]}  Qxc5 {[%clk 0:02:15]} 11. Qe3 {[%clk 0:01:48]}  Qa5 {[%clk 0:02:07]} 12. f3 {[%clk 0:01:47]}  h5 {[%clk 0:01:59]} 13. a4 {[%clk 0:01:37]}  Rg8 {[%clk 0:01:52]} 14. O-O {[%clk 0:01:35]}  d6 {[%clk 0:01:50]} 15. Rf2 {[%clk 0:01:31]}  Ne5 {[%clk 0:01:38]} 16. Nf4 {[%clk 0:01:04]}  Bd7 {[%clk 0:01:28]} 17. Rb1 {[%clk 0:01:01]}  Bc6 {[%clk 0:01:08]} 18. c4 {[%clk 0:00:57]}  Rg3 {[%clk 0:00:49]} 19. Qd2 {[%clk 0:00:37]}  Qxa4 {[%clk 0:00:47]} 20. Nd5 {[%clk 0:00:36]}  Nxc4 {[%clk 0:00:30]} 21. Bxc4 {[%clk 0:00:27]}  Qxc4 {[%clk 0:00:27]} 22. Nc7+ {[%clk 0:00:18]}  Kd7 {[%clk 0:00:27]} 23. Nxa8 {[%clk 0:00:18]}  b5 {[%clk 0:00:16]} 24. Ra1 {[%clk 0:00:15]}  Bxe4 {[%clk 0:00:04]} 25. Rxa7+ {[%clk 0:00:13]}  Ke6 {[%clk 0:00:03]} 26. Nc7+ {[%clk 0:00:12]}  Ke5 {[%clk 0:00:04]} 27. Qf4+ {[%clk 0:00:10]}  Kd4 {[%clk 0:00:03]} 28. Qxg3 {[%clk 0:00:09]} 1-0


[Site "https://www.chess.com"]

[Event "Titled Tuesday Blitz August 02 Late 2022"]
[White "Zhurbinsky, David"]
[Black "Harsha Bharathakoti"]
[WhiteFideId "2072904"]
[BlackFideId "5078776"]
[WhiteElo "2572"]
[BlackElo "2575"]
[Result "0-1"]
[Round "02"]
[TimeControl "180+1"]
[Date "2022.08.02"]
[WhiteClock "0:00:22"]
[BlackClock "0:01:47"]

1. e4 {[%clk 0:02:58]}  c6 {[%clk 0:03:00]} 2. d4 {[%clk 0:02:59]}  d5 {[%clk 0:03:00]} 3. Nc3 {[%clk 0:02:59]}  dxe4 {[%clk 0:02:59]} 4. Nxe4 {[%clk 0:03:00]}  Bf5 {[%clk 0:02:59]} 5. Nc5 {[%clk 0:02:59]}  e5 {[%clk 0:02:50]} 6. Nxb7 {[%clk 0:02:59]}  Qb6 {[%clk 0:02:49]} 7. Nc5 {[%clk 0:03:00]}  exd4 {[%clk 0:02:48]} 8. Nb3 {[%clk 0:03:00]}  c5 {[%clk 0:02:43]} 9. Qf3 {[%clk 0:02:59]}  Qe6+ {[%clk 0:02:44]} 10. Be2 {[%clk 0:02:59]}  Be4 {[%clk 0:02:44]} 11. Qg3 {[%clk 0:02:59]}  Nf6 {[%clk 0:02:35]} 12. Nh3 {[%clk 0:02:56]}  Bd6 {[%clk 0:02:34]} 13. Bf4 {[%clk 0:02:54]}  Bxf4 {[%clk 0:02:33]} 14. Nxf4 {[%clk 0:02:55]}  Qe5 {[%clk 0:02:31]} 15. O-O {[%clk 0:02:37]}  O-O {[%clk 0:02:31]} 16. Nh5 {[%clk 0:02:25]}  Qxg3 {[%clk 0:02:14]} 17. Nxf6+ {[%clk 0:02:25]}  gxf6 {[%clk 0:02:15]} 18. fxg3 {[%clk 0:02:26]}  Nd7 {[%clk 0:02:16]} 19. Bb5 {[%clk 0:02:03]}  Ne5 {[%clk 0:02:15]} 20. Nxc5 {[%clk 0:01:58]}  Bxc2 {[%clk 0:02:15]} 21. Rac1 {[%clk 0:01:49]}  d3 {[%clk 0:02:13]} 22. Ne4 {[%clk 0:01:22]}  Rfb8 {[%clk 0:01:59]} 23. Nxf6+ {[%clk 0:01:18]}  Kg7 {[%clk 0:02:00]} 24. Bd7 {[%clk 0:00:39]}  Nxd7 {[%clk 0:01:50]} 25. Nxd7 {[%clk 0:00:39]}  Rxb2 {[%clk 0:01:51]} 26. Rf2 {[%clk 0:00:37]}  Rd8 {[%clk 0:01:49]} 27. Ne5 {[%clk 0:00:27]}  d2 {[%clk 0:01:49]} 28. Rxf7+ {[%clk 0:00:24]}  Kg8 {[%clk 0:01:49]} 29. Rcf1 {[%clk 0:00:22]}  d1=Q {[%clk 0:01:47]} 0-1


[Site "https://www.chess.com"]

[Event "Titled Tuesday Blitz August 02 Late 2022"]
[White "Babazada, Khazar"]
[Black "Rosen, Eric"]
[WhiteFideId "13413554"]
[BlackFideId "2032562"]
[WhiteElo "2409"]
[BlackElo "2362"]
[Result "1-0"]
[Round "03"]
[TimeControl "180+1"]
[Date "2022.08.02"]
[WhiteClock "0:00:22"]
[BlackClock "0:00:03"]

1. Nf3 {[%clk 0:02:57]}  d5 {[%clk 0:02:59]} 2. g3 {[%clk 0:02:51]}  Nf6 {[%clk 0:03:00]} 3. Bg2 {[%clk 0:02:52]}  e6 {[%clk 0:02:59]} 4. O-O {[%clk 0:02:52]}  Be7 {[%clk 0:02:55]} 5. d3 {[%clk 0:02:53]}  b6 {[%clk 0:02:54]} 6. Nc3 {[%clk 0:02:54]}  Bb7 {[%clk 0:02:54]} 7. e4 {[%clk 0:02:53]}  dxe4 {[%clk 0:02:55]} 8. Ng5 {[%clk 0:02:53]}  O-O {[%clk 0:02:54]} 9. dxe4 {[%clk 0:02:51]}  Nc6 {[%clk 0:02:52]} 10. e5 {[%clk 0:02:48]}  Nd7 {[%clk 0:02:45]} 11. Qh5 {[%clk 0:02:18]}  h6 {[%clk 0:02:37]} 12. Nh3 {[%clk 0:02:13]}  Ndxe5 {[%clk 0:02:33]} 13. Bxh6 {[%clk 0:02:03]}  gxh6 {[%clk 0:02:26]} 14. Rad1 {[%clk 0:01:58]}  Qc8 {[%clk 0:02:12]} 15. Qxh6 {[%clk 0:01:58]}  Rd8 {[%clk 0:02:00]} 16. Ng5 {[%clk 0:01:46]}  Bxg5 {[%clk 0:01:59]} 17. Qxg5+ {[%clk 0:01:47]}  Ng6 {[%clk 0:01:58]} 18. Ne4 {[%clk 0:01:47]}  Rxd1 {[%clk 0:01:27]} 19. Rxd1 {[%clk 0:01:47]}  Qf8 {[%clk 0:01:17]} 20. Nf6+ {[%clk 0:01:47]}  Kg7 {[%clk 0:01:17]} 21. h4 {[%clk 0:01:47]}  Rd8 {[%clk 0:00:53]} 22. Nh5+ {[%clk 0:01:09]}  Kg8 {[%clk 0:00:51]} 23. Re1 {[%clk 0:01:02]}  Na5 {[%clk 0:00:42]} 24. Rxe6 {[%clk 0:00:37]}  Rd6 {[%clk 0:00:24]} 25. Nf6+ {[%clk 0:00:32]}  Kg7 {[%clk 0:00:23]} 26. Re8 {[%clk 0:00:25]}  Rxf6 {[%clk 0:00:14]} 27. Rxf8 {[%clk 0:00:25]}  Kxf8 {[%clk 0:00:14]} 28. Qxf6 {[%clk 0:00:25]}  Bxg2 {[%clk 0:00:14]} 29. Kxg2 {[%clk 0:00:26]}  Nc4 {[%clk 0:00:12]} 30. h5 {[%clk 0:00:26]}  Ke8 {[%clk 0:00:03]} 31. hxg6 {[%clk 0:00:23]}  fxg6 {[%clk 0:00:02]} 32. Qe6+ {[%clk 0:00:23]}  Kd8 {[%clk 0:00:01]} 33. Qxc4 {[%clk 0:00:24]}  Kc8 {[%clk 0:00:02]} 34. Qc6 {[%clk 0:00:24]}  g5 {[%clk 0:00:02]} 35. Kf3 {[%clk 0:00:24]}  b5 {[%clk 0:00:02]} 36. Ke4 {[%clk 0:00:25]}  b4 {[%clk 0:00:01]} 37. Kd5 {[%clk 0:00:26]}  b3 {[%clk 0:00:02]} 38. axb3 {[%clk 0:00:26]}  a5 {[%clk 0:00:03]} 39. Ke6 {[%clk 0:00:26]}  a4 {[%clk 0:00:03]} 40. Qa8# {[%clk 0:00:22]} 1-0


[Site "https://www.chess.com"]

[Event "Titled Tuesday Blitz August 02 Late 2022"]
[White "Bjelobrk, Igor"]
[Black "Zhigalko, Sergei"]
[WhiteFideId "4300726"]
[BlackFideId "13502956"]
[WhiteElo "2335"]
[BlackElo "2662"]
[Result "0-1"]
[Round "03"]
[TimeControl "180+1"]
[Date "2022.08.02"]
[WhiteClock "0:00:13"]
[BlackClock "0:00:04"]

1. Nf3 {[%clk 0:02:59]}  d5 {[%clk 0:02:59]} 2. e3 {[%clk 0:02:58]}  Nf6 {[%clk 0:02:53]} 3. c4 {[%clk 0:02:58]}  e6 {[%clk 0:02:54]} 4. d4 {[%clk 0:02:56]}  b6 {[%clk 0:02:53]} 5. Nc3 {[%clk 0:02:43]}  Bd6 {[%clk 0:02:51]} 6. cxd5 {[%clk 0:02:41]}  exd5 {[%clk 0:02:51]} 7. Bb5+ {[%clk 0:02:39]}  c6 {[%clk 0:02:42]} 8. Bd3 {[%clk 0:02:33]}  O-O {[%clk 0:02:42]} 9. O-O {[%clk 0:02:31]}  Re8 {[%clk 0:02:42]} 10. Re1 {[%clk 0:02:30]}  Ne4 {[%clk 0:02:43]} 11. Ne5 {[%clk 0:02:27]}  Bxe5 {[%clk 0:02:23]} 12. dxe5 {[%clk 0:02:26]}  Nxc3 {[%clk 0:02:23]} 13. bxc3 {[%clk 0:02:25]}  Rxe5 {[%clk 0:02:23]} 14. c4 {[%clk 0:02:05]}  Qh4 {[%clk 0:01:37]} 15. g3 {[%clk 0:01:36]}  Qh5 {[%clk 0:01:25]} 16. Qxh5 {[%clk 0:01:30]}  Rxh5 {[%clk 0:01:25]} 17. Bb2 {[%clk 0:01:24]}  Bg4 {[%clk 0:01:03]} 18. cxd5 {[%clk 0:01:17]}  cxd5 {[%clk 0:00:53]} 19. Rac1 {[%clk 0:01:11]}  Nd7 {[%clk 0:00:53]} 20. Rc7 {[%clk 0:01:04]}  Nc5 {[%clk 0:00:53]} 21. Bf1 {[%clk 0:01:02]}  Ne6 {[%clk 0:00:43]} 22. Rb7 {[%clk 0:01:02]}  Nc5 {[%clk 0:00:28]} 23. Re7 {[%clk 0:00:57]}  Kf8 {[%clk 0:00:27]} 24. Re5 {[%clk 0:00:56]}  Rxe5 {[%clk 0:00:23]} 25. Bxe5 {[%clk 0:00:57]}  Rc8 {[%clk 0:00:15]} 26. h3 {[%clk 0:00:57]}  Bf3 {[%clk 0:00:12]} 27. Rc1 {[%clk 0:00:56]}  f6 {[%clk 0:00:10]} 28. Bd4 {[%clk 0:00:48]}  Ke7 {[%clk 0:00:10]} 29. g4 {[%clk 0:00:42]}  Kd6 {[%clk 0:00:08]} 30. Kh2 {[%clk 0:00:42]}  h5 {[%clk 0:00:08]} 31. Bb5 {[%clk 0:00:40]}  hxg4 {[%clk 0:00:07]} 32. hxg4 {[%clk 0:00:38]}  Bxg4 {[%clk 0:00:08]} 33. Kg2 {[%clk 0:00:37]}  Rh8 {[%clk 0:00:05]} 34. f3 {[%clk 0:00:36]}  Bh3+ {[%clk 0:00:05]} 35. Kg3 {[%clk 0:00:36]}  Be6 {[%clk 0:00:05]} 36. a4 {[%clk 0:00:33]}  Rb8 {[%clk 0:00:04]} 37. a5 {[%clk 0:00:31]}  Rb7 {[%clk 0:00:04]} 38. axb6 {[%clk 0:00:31]}  axb6 {[%clk 0:00:04]} 39. Ra1 {[%clk 0:00:32]}  Bd7 {[%clk 0:00:05]} 40. Be2 {[%clk 0:00:30]}  Ne6 {[%clk 0:00:05]} 41. Bb2 {[%clk 0:00:29]}  Bc6 {[%clk 0:00:05]} 42. Rh1 {[%clk 0:00:26]}  Ra7 {[%clk 0:00:05]} 43. Rh8 {[%clk 0:00:24]}  Ra2 {[%clk 0:00:05]} 44. Bc3 {[%clk 0:00:12]}  Rxe2 {[%clk 0:00:04]} 45. Bb4+ {[%clk 0:00:12]}  Nc5 {[%clk 0:00:04]} 46. Rg8 {[%clk 0:00:13]}  Rxe3 {[%clk 0:00:04]} 47. Rxg7 {[%clk 0:00:13]}  d4 {[%clk 0:00:04]} 0-1


[Site "https://www.chess.com"]

[Event "Titled Tuesday Blitz August 02 Late 2022"]
[White "Bortnyk, Olexandr"]
[Black "Ernst, Sipke"]
[WhiteFideId "14120828"]
[BlackFideId "1004689"]
[WhiteElo "2723"]
[BlackElo "2436"]
[Result "1-0"]
[Round "03"]
[TimeControl "180+1"]
[Date "2022.08.02"]
[WhiteClock "0:00:25"]
[BlackClock "0:00:01"]

1. d4 {[%clk 0:03:00]}  d5 {[%clk 0:02:58]} 2. Nc3 {[%clk 0:03:01]}  c6 {[%clk 0:02:56]} 3. Bf4 {[%clk 0:03:01]}  Bf5 {[%clk 0:02:55]} 4. e3 {[%clk 0:03:01]}  Nd7 {[%clk 0:02:51]} 5. Nf3 {[%clk 0:03:01]}  e6 {[%clk 0:02:47]} 6. Ne5 {[%clk 0:03:01]}  Nxe5 {[%clk 0:02:45]} 7. Bxe5 {[%clk 0:03:02]}  Nf6 {[%clk 0:02:45]} 8. Bd3 {[%clk 0:03:00]}  Bg6 {[%clk 0:02:43]} 9. Ne2 {[%clk 0:02:57]}  Nd7 {[%clk 0:02:42]} 10. Bg3 {[%clk 0:02:57]}  Be7 {[%clk 0:02:39]} 11. O-O {[%clk 0:02:57]}  O-O {[%clk 0:02:39]} 12. c4 {[%clk 0:02:57]}  Bxd3 {[%clk 0:02:36]} 13. Qxd3 {[%clk 0:02:57]}  dxc4 {[%clk 0:02:30]} 14. Qxc4 {[%clk 0:02:57]}  Qa5 {[%clk 0:02:28]} 15. a3 {[%clk 0:02:57]}  Rac8 {[%clk 0:02:27]} 16. b4 {[%clk 0:02:57]}  Qf5 {[%clk 0:02:13]} 17. Nc3 {[%clk 0:02:54]}  Nb6 {[%clk 0:02:11]} 18. Qb3 {[%clk 0:02:53]}  Qd3 {[%clk 0:02:01]} 19. Rfd1 {[%clk 0:02:52]}  Qc4 {[%clk 0:02:00]} 20. Qb2 {[%clk 0:02:51]}  Nd5 {[%clk 0:01:58]} 21. Rac1 {[%clk 0:02:50]}  Nxc3 {[%clk 0:01:57]} 22. Rxc3 {[%clk 0:02:51]}  Qd5 {[%clk 0:01:55]} 23. Rdc1 {[%clk 0:02:50]}  Bf6 {[%clk 0:01:44]} 24. h3 {[%clk 0:02:49]}  Qd7 {[%clk 0:01:42]} 25. Qe2 {[%clk 0:02:48]}  a6 {[%clk 0:01:41]} 26. a4 {[%clk 0:02:47]}  Rfd8 {[%clk 0:01:37]} 27. Qf3 {[%clk 0:02:46]}  Be7 {[%clk 0:01:35]} 28. Rc4 {[%clk 0:02:46]}  Bd6 {[%clk 0:01:34]} 29. Bh4 {[%clk 0:02:45]}  Re8 {[%clk 0:01:31]} 30. Qg4 {[%clk 0:02:36]}  Bf8 {[%clk 0:01:20]} 31. Qe4 {[%clk 0:02:28]}  b5 {[%clk 0:01:09]} 32. Rxc6 {[%clk 0:02:25]}  bxa4 {[%clk 0:01:00]} 33. Bg3 {[%clk 0:02:16]}  Bxb4 {[%clk 0:00:39]} 34. Rc7 {[%clk 0:02:11]}  Rxc7 {[%clk 0:00:38]} 35. Rxc7 {[%clk 0:02:12]}  Qd5 {[%clk 0:00:27]} 36. Qd3 {[%clk 0:01:58]}  Qb5 {[%clk 0:00:22]} 37. Qc2 {[%clk 0:01:49]}  a3 {[%clk 0:00:21]} 38. Kh2 {[%clk 0:01:43]}  Bf8 {[%clk 0:00:20]} 39. Be5 {[%clk 0:01:31]}  a5 {[%clk 0:00:19]} 40. e4 {[%clk 0:01:07]}  f6 {[%clk 0:00:19]} 41. Bg3 {[%clk 0:01:04]}  Qb2 {[%clk 0:00:19]} 42. Qa4 {[%clk 0:01:03]}  Rd8 {[%clk 0:00:15]} 43. Qxa5 {[%clk 0:00:53]}  Qxd4 {[%clk 0:00:12]} 44. Ra7 {[%clk 0:00:43]}  Rc8 {[%clk 0:00:09]} 45. Qa6 {[%clk 0:00:41]}  Re8 {[%clk 0:00:06]} 46. Qb7 {[%clk 0:00:39]}  Kh8 {[%clk 0:00:03]} 47. Qf7 {[%clk 0:00:32]}  Rd8 {[%clk 0:00:01]} 48. e5 {[%clk 0:00:26]}  Qd5 {[%clk 0:00:01]} 49. exf6 {[%clk 0:00:25]} 1-0


[Site "https://www.chess.com"]

[Event "Titled Tuesday Blitz August 02 Late 2022"]
[White "Chigaev, Maksim"]
[Black "Shapiro, David"]
[WhiteFideId "4108116"]
[BlackFideId "24133523"]
[WhiteElo "2438"]
[BlackElo "2300"]
[Result "1-0"]
[Round "03"]
[TimeControl "180+1"]
[Date "2022.08.02"]
[WhiteClock "0:00:10"]
[BlackClock "0:00:00"]

1. Nf3 {[%clk 0:03:00]}  Nf6 {[%clk 0:02:41]} 2. g3 {[%clk 0:03:00]}  d5 {[%clk 0:02:39]} 3. Bg2 {[%clk 0:02:57]}  c6 {[%clk 0:02:40]} 4. O-O {[%clk 0:02:57]}  Bg4 {[%clk 0:02:39]} 5. c4 {[%clk 0:02:54]}  e6 {[%clk 0:02:38]} 6. Qb3 {[%clk 0:02:51]}  Qb6 {[%clk 0:02:35]} 7. d3 {[%clk 0:02:44]}  Nbd7 {[%clk 0:02:34]} 8. Be3 {[%clk 0:02:43]}  Bc5 {[%clk 0:02:33]} 9. Bxc5 {[%clk 0:02:41]}  Nxc5 {[%clk 0:02:34]} 10. Qc2 {[%clk 0:02:42]}  O-O {[%clk 0:02:28]} 11. Nbd2 {[%clk 0:02:40]}  Rfe8 {[%clk 0:02:19]} 12. h3 {[%clk 0:02:28]}  Bh5 {[%clk 0:02:16]} 13. g4 {[%clk 0:02:27]}  Bg6 {[%clk 0:02:17]} 14. Ne5 {[%clk 0:02:28]}  Ncd7 {[%clk 0:02:13]} 15. Ndf3 {[%clk 0:02:25]}  Nxe5 {[%clk 0:02:04]} 16. Nxe5 {[%clk 0:02:26]}  Rad8 {[%clk 0:02:02]} 17. Kh1 {[%clk 0:02:21]}  Nd7 {[%clk 0:02:00]} 18. Nxg6 {[%clk 0:02:16]}  hxg6 {[%clk 0:02:00]} 19. Rab1 {[%clk 0:02:15]}  g5 {[%clk 0:01:49]} 20. b4 {[%clk 0:02:15]}  Ne5 {[%clk 0:01:49]} 21. b5 {[%clk 0:02:06]}  c5 {[%clk 0:01:41]} 22. cxd5 {[%clk 0:01:48]}  exd5 {[%clk 0:01:41]} 23. Rfc1 {[%clk 0:01:45]}  c4 {[%clk 0:01:37]} 24. Kg1 {[%clk 0:01:26]}  cxd3 {[%clk 0:01:03]} 25. exd3 {[%clk 0:01:26]}  Ng6 {[%clk 0:01:03]} 26. Qc5 {[%clk 0:01:12]}  Nf4 {[%clk 0:00:58]} 27. Qxb6 {[%clk 0:00:59]}  axb6 {[%clk 0:00:59]} 28. Bf1 {[%clk 0:01:00]}  Ra8 {[%clk 0:00:53]} 29. Rb2 {[%clk 0:00:58]}  Rec8 {[%clk 0:00:50]} 30. Rbc2 {[%clk 0:00:50]}  Rxc2 {[%clk 0:00:47]} 31. Rxc2 {[%clk 0:00:51]}  Ra3 {[%clk 0:00:47]} 32. Rc8+ {[%clk 0:00:33]}  Kh7 {[%clk 0:00:46]} 33. Rc7 {[%clk 0:00:34]}  Rxa2 {[%clk 0:00:35]} 34. Rxf7 {[%clk 0:00:34]}  Ra1 {[%clk 0:00:28]} 35. f3 {[%clk 0:00:31]}  Nxd3 {[%clk 0:00:17]} 36. Rxb7 {[%clk 0:00:25]}  Nf4 {[%clk 0:00:14]} 37. Rxb6 {[%clk 0:00:21]}  Nxh3+ {[%clk 0:00:12]} 38. Kg2 {[%clk 0:00:20]}  Nf4+ {[%clk 0:00:12]} 39. Kf2 {[%clk 0:00:21]}  d4 {[%clk 0:00:11]} 40. Rd6 {[%clk 0:00:20]}  Ra2+ {[%clk 0:00:11]} 41. Kg3 {[%clk 0:00:17]}  d3 {[%clk 0:00:12]} 42. Bxd3+ {[%clk 0:00:09]}  Nxd3 {[%clk 0:00:05]} 43. Rxd3 {[%clk 0:00:09]}  Rb2 {[%clk 0:00:06]} 44. Rd5 {[%clk 0:00:09]}  Kg6 {[%clk 0:00:00]} 45. Rf5 {[%clk 0:00:10]} 1-0


[Site "https://www.chess.com"]

[Event "Titled Tuesday Blitz August 02 Late 2022"]
[White "Dimitrov, Atanas"]
[Black "Oparin, Grigoriy"]
[WhiteFideId "2901315"]
[BlackFideId "24125890"]
[WhiteElo "2678"]
[BlackElo "2639"]
[Result "0-1"]
[Round "03"]
[TimeControl "180+1"]
[Date "2022.08.02"]
[WhiteClock "0:02:13"]
[BlackClock "0:02:17"]

1. Nf3 {[%clk 0:03:00]}  c5 {[%clk 0:02:58]} 2. c4 {[%clk 0:03:00]}  Nf6 {[%clk 0:02:57]} 3. Nc3 {[%clk 0:03:00]}  e6 {[%clk 0:02:57]} 4. e3 {[%clk 0:03:00]}  d5 {[%clk 0:02:57]} 5. d4 {[%clk 0:02:59]}  Nc6 {[%clk 0:02:56]} 6. cxd5 {[%clk 0:02:59]}  exd5 {[%clk 0:02:56]} 7. Be2 {[%clk 0:02:59]}  cxd4 {[%clk 0:02:52]} 8. Nxd4 {[%clk 0:02:59]}  Bd6 {[%clk 0:02:51]} 9. Bf3 {[%clk 0:02:52]}  O-O {[%clk 0:02:49]} 10. O-O {[%clk 0:02:52]}  Qe7 {[%clk 0:02:46]} 11. g3 {[%clk 0:02:49]}  Rd8 {[%clk 0:02:46]} 12. Nxc6 {[%clk 0:02:48]}  bxc6 {[%clk 0:02:46]} 13. b3 {[%clk 0:02:47]}  Bh3 {[%clk 0:02:42]} 14. Re1 {[%clk 0:02:45]}  Bb4 {[%clk 0:02:33]} 15. Bb2 {[%clk 0:02:44]}  Ne4 {[%clk 0:02:34]} 16. Qc2 {[%clk 0:02:40]}  Qf6 {[%clk 0:02:23]} 17. Bh1 {[%clk 0:02:30]}  Bxc3 {[%clk 0:02:18]} 18. Bxe4 {[%clk 0:02:13]}  Bxb2 {[%clk 0:02:18]} 19. Bxh7+ {[%clk 0:02:13]}  Kh8 {[%clk 0:02:17]} 0-1


[Site "https://www.chess.com"]